lending/lending_fUSD_20250121
["ID","MTS","AMOUNT","RATE_DAILY","PERIOD"]
[349817794,1737450644860,-151.0,0.00019726,2]
[349817795,1737450644869,-535.77368177,0.00019726,2]
[349817796,1737450644879,-1000.0,0.00019726,2]
[349817797,1737450644888,-557.12,0.00019726,2]
[349817798,1737450644898,-500.0,0.00019726,2]
[349817799,1737450644908,-805.94,0.00019726,2]
[349817800,1737450644917,-500.0,0.00019726,2]
[349817801,1737450644926,-500.0,0.00019726,2]
[349817802,1737450644936,-500.0,0.00019726,2]
[349817803,1737450644945,-837.36,0.00019726,2]
[349817804,1737450644955,-500.0,0.00019726,2]
[349817805,1737450644965,-500.0,0.00019726,2]
[349817806,1737450644974,-500.0,0.00019726,2]
[349817807,1737450644984,-1207.54,0.00019726,2]
[349817808,1737450644993,-500.0,0.00019726,2]
[349817809,1737450645003,-500.0,0.00019726,2]
[349817810,1737450645013,-500.0,0.00019726,2]
[349817811,1737450645022,-1050.36,0.00019726,2]
[349817812,1737450645034,-728.95,0.00019726,2]
[349817813,1737450645049,-171.71377,0.00019726,2]
[349817814,1737450645058,-654.59,0.00019726,2]
[349817815,1737450645068,-151.0,0.00019726,2]
[349817816,1737450645079,-195.05,0.00019726,2]
[349817817,1737450645089,-1201.91,0.00019726,2]
[349817818,1737450645098,-500.0,0.00019726,2]
[349817819,1737450645108,-821.41,0.00019726,2]
[349817820,1737450645119,-500.0,0.00019726,2]
[349817821,1737450645128,-1041.36,0.00019726,2]
[349817822,1737450645138,-500.0,0.00019726,2]
[349817823,1737450645148,-151.0,0.00019726,2]
[349817824,1737450645157,-151.0,0.00019726,2]
[349817825,1737450645168,-626.41,0.00019726,2]
[349817826,1737450645178,-151.0,0.00019726,2]
[349817827,1737450645188,-500.0,0.00019726,2]
[349817828,1737450645197,-599.33,0.00019726,2]
[349817829,1737450645206,-500.0,0.00019726,2]
[349817830,1737450645216,-795.91,0.00019726,2]
[349817831,1737450645225,-542.672123,0.00019726,2]
[349817832,1737450645234,-1676.17,0.00019726,2]
[349817833,1737450645244,-500.0,0.00019726,2]
[349817834,1737450645253,-500.0,0.00019726,2]
[349817835,1737450645263,-537.99,0.00019726,2]
[349817836,1737450645272,-500.0,0.00019726,2]
[349817837,1737450645282,-1571.69,0.00019726,2]
[349817838,1737450645292,-1491.21,0.00019726,2]
[349817839,1737450645302,-500.0,0.00019726,2]
[349817840,1737450645314,-1067.25,0.00019726,2]
[349817841,1737450645323,-1814.55,0.00019726,2]
[349817842,1737450645333,-404.04,0.00019726,2]
[349817843,1737450645343,-151.0,0.00019726,2]
[349817844,1737450645353,-179.77,0.00019726,2]
[349817845,1737450645362,-500.0,0.00019726,2]
[349817846,1737450645372,-151.0,0.00019726,2]
[349817847,1737450645381,-500.0,0.00019726,2]
[349817848,1737450645391,-573.56,0.00019726,2]
[349817849,1737450645401,-182.506579,0.00019726,2]
[349817850,1737450645410,-548.96,0.00019726,2]
[349817851,1737450645419,-784.8,0.00019726,2]
[349817852,1737450645429,-500.0,0.00019726,2]
[349817853,1737450645438,-182.506579,0.00019726,2]
[349817854,1737450645447,-2494.89,0.00019726,2]
[349817855,1737450645456,-618.5,0.00019726,2]
[349817856,1737450645466,-502.38,0.00019726,2]
[349817857,1737450645475,-151.0,0.00019726,2]
[349817858,1737450645485,-500.0,0.00019726,2]
[349817859,1737450645494,-151.0,0.00019726,2]
[349817860,1737450645503,-267.95538,0.00019726,2]
[349817861,1737450645512,-500.0,0.00019726,2]
[349817862,1737450645521,-695.98,0.00019726,2]
[349817864,1737450645530,-500.0,0.00019726,2]
[349817866,1737450645539,-1436.11,0.00019726,2]
[349817867,1737450645548,-824.62,0.00019726,2]
[349817868,1737450645558,-500.0,0.00019726,2]
[349817869,1737450645567,-500.0,0.00019726,2]
[349817870,1737450645577,-764.64,0.00019726,2]
[349817871,1737450645587,-266.22,0.00019726,2]
[349817872,1737450645597,-188.00808086,0.00019726,2]
[349817873,1737450645606,-500.0,0.00019726,2]
[349817874,1737450645617,-500.0,0.00019726,2]
[349817875,1737450645626,-500.0,0.00019726,2]
[349817876,1737450645636,-290.873762,0.00019726,2]
[349817878,1737450645646,-1470.78,0.00019726,2]
[349817879,1737450645656,-360.086314,0.00019726,2]
[349817881,1737450645665,-181.24,0.00019726,2]
[349817882,1737450645674,-1333.1,0.00019726,2]
[349817884,1737450645684,-500.0,0.00019726,2]
[349817885,1737450645694,-290.873762,0.00019726,2]
[349817886,1737450645703,-1291.48,0.00019726,2]
[349817887,1737450645713,-289.839424,0.00019726,2]
[349817888,1737450645723,-500.0,0.00019726,2]
[349817889,1737450645733,-500.0,0.00019726,2]
[349817891,1737450645743,-500.0,0.00019726,2]
[349817893,1737450645753,-945.45,0.00019726,2]
[349817894,1737450645762,-668.66,0.00019726,2]
[349817895,1737450645772,-500.0,0.00019726,2]
[349817896,1737450645781,-500.0,0.00019726,2]
[349817897,1737450645791,-500.0,0.00019726,2]
[349817898,1737450645800,-1457.67,0.00019726,2]
[349817899,1737450645811,-500.0,0.00019726,2]
[349817900,1737450645821,-500.0,0.00019726,2]
[349817901,1737450645831,-1553.35,0.00019726,2]
[349817902,1737450645840,-516.63060366,0.00019726,2]
[349817903,1737450645850,-500.0,0.00019726,2]
[349817904,1737450645859,-500.0,0.00019726,2]
[349817905,1737450645869,-203.82937226,0.00019775,2]
[349817906,1737450645879,-169.026359,0.00019844,2]
[349817907,1737450645889,-434.99891,0.00019844,2]
[349817908,1737450645899,-30000.0,0.00019844,2]
[349817909,1737450645908,-537.04,0.00019862,2]
[349817910,1737450645918,-32175.06774423,0.000199,2]
[349817911,1737450645927,-151.0,0.000199,2]
[349817912,1737450645936,-151.0,0.000199,2]
[349817913,1737450645944,-151.0,0.000199,2]
[349817914,1737450645954,-161.384238,0.000199,2]
[349817915,1737450645963,-151.0,0.000199,2]
[349817916,1737450645972,-1179.906541,0.000199,2]
[349817917,1737450645982,-1146.462683,0.000199,2]
[349817918,1737450645991,-1146.462683,0.000199,2]
[349817919,1737450646001,-237.806279,0.000199,2]
[349817920,1737450646010,-237.806279,0.000199,2]
[349817921,1737450646019,-151.0,0.000199,2]
[349817922,1737450646030,-151.0,0.000199,2]
[349817923,1737450646039,-151.0,0.000199,2]
[349817924,1737450646049,-151.0,0.000199,2]
[349817925,1737450646059,-151.0,0.000199,2]
[349817926,1737450646068,-203.82937226,0.000199,2]
[349817927,1737450646079,-93884.87805897,0.0001995,2]
[349817928,1737450646088,-161.031075,0.0001995,2]
[349817929,1737450646097,-151.0,0.0001995,2]
[349817930,1737450646107,-154.328043,0.0001995,2]
[349817931,1737450646116,-151.0,0.0001995,2]
[349817932,1737450646126,-151.0,0.0001995,2]
[349817933,1737450646135,-233.788884,0.0001995,2]
[349817934,1737450646144,-151.0,0.0001995,2]
[349817935,1737450646153,-233.788884,0.0001995,2]
[349817936,1737450646162,-151.0,0.0001995,2]
[349817937,1737450646171,-151.0,0.0001995,2]
[349817938,1737450646180,-151.0,0.0001995,2]
[349817939,1737450646190,-290.873762,0.0001995,2]
[349817940,1737450646200,-290.873762,0.0001995,2]
[349817941,1737450646209,-151.0,0.00019972,2]
[349817942,1737450646219,-1833.0,0.00019973,2]
[349817943,1737450646228,-500.0,0.00019973,2]
[349817944,1737450646237,-150.665,0.00019976,2]
[349817945,1737450646246,-3984.0,0.00019976,2]
[349817946,1737450646255,-151.0,0.00019976,2]
[349817947,1737450646264,-151.0,0.00019976,2]
[349817948,1737450646273,-151.0,0.00019976,2]
[349817949,1737450646283,-151.0,0.00019976,2]
[349817950,1737450646292,-151.0,0.00019976,2]
[349817951,1737450646301,-151.0,0.00019976,2]
[349817952,1737450646312,-151.0,0.00019976,2]
[349817953,1737450646322,-182.506579,0.00019976,2]
[349817954,1737450646331,-182.506579,0.00019976,2]
[349817955,1737450646341,-537.04,0.00019999,2]
[349817956,1737450646352,-3902.0,0.0002,2]
[349817957,1737450646361,-152.519,0.0002,2]
[349817958,1737450646370,-1180.691,0.0002,2]
[349817959,1737450646379,-113647.0,0.0002,2]
[349817960,1737450646388,-50000.0,0.0002,2]
[349817961,1737450646398,-151.0,0.0002,2]
[349817962,1737450646407,-500.0,0.0002,2]
[349817963,1737450646416,-151.0,0.0002,2]
[349817964,1737450646550,-151.0,0.0002,2]
[349817965,1737450646560,-277.829003,0.0002,2]
[349817966,1737450646570,-283.736017,0.0002,2]
[349817967,1737450646580,-151.0,0.0002,2]
[349817968,1737450646589,-151.0,0.0002,2]
[349817969,1737450646599,-196.656917,0.0002,2]
[349817970,1737450646609,-151.0,0.0002,2]
[349817971,1737450646619,-151.0,0.0002,2]
[349817972,1737450646628,-888.22,0.0002,2]
[349817973,1737450646638,-151.0,0.0002,2]
[349817974,1737450646647,-151.0,0.0002,2]
[349817975,1737450646657,-500.0,0.0002,2]
[349817976,1737450646667,-151.0,0.0002,2]
[349817977,1737450646676,-151.0,0.0002,2]
[349817978,1737450646685,-151.0,0.0002,2]
[349817979,1737450646696,-151.0,0.0002,2]
[349817980,1737450646705,-151.0,0.0002,2]
[349817981,1737450646715,-500.0,0.0002,2]
[349817982,1737450646724,-500.0,0.0002,2]
[349817983,1737450646733,-151.0,0.0002,2]
[349817984,1737450646743,-500.0,0.0002,2]
[349817985,1737450646752,-151.0,0.0002,2]
[349817986,1737450646761,-151.0,0.0002,2]
[349817987,1737450646770,-151.421503,0.0002,2]
[349817988,1737450646779,-151.421503,0.0002,2]
[349817989,1737450646789,-151.0,0.0002,2]
[349817990,1737450646799,-500.0,0.0002,2]
[349817991,1737450646809,-746.9,0.0002,2]
[349817992,1737450646818,-531.99,0.0002,2]
[349817993,1737450646828,-151.0,0.0002,2]
[349817994,1737450646837,-151.0,0.0002,2]
[349817995,1737450646846,-151.0,0.0002,2]
[349817996,1737450646855,-692.671739,0.0002,2]
[349817997,1737450646864,-151.642136,0.0002,2]
[349817998,1737450646873,-692.671739,0.0002,2]
[349817999,1737450646883,-500.0,0.0002,2]
[349818000,1737450646891,-500.0,0.0002,2]
[349818001,1737450646900,-1111.59,0.0002,2]
[349818002,1737450646910,-151.0,0.0002,2]
[349818003,1737450646919,-151.0,0.0002,2]
[349818004,1737450646928,-500.0,0.0002,2]
[349818005,1737450646937,-152.598196,0.0002,2]
[349818006,1737450646947,-154.420174,0.0002,2]
[349818007,1737450646956,-500.0,0.0002,2]
[349818008,1737450646965,-500.0,0.0002,2]
[349818009,1737450646974,-726.391772,0.0002,2]
[349818010,1737450646984,-500.0,0.0002,2]
[349818011,1737450646993,-726.391772,0.0002,2]
[349818012,1737450647003,-151.0,0.0002,2]
[349818013,1737450647012,-500.0,0.0002,2]
[349818014,1737450647021,-500.0,0.0002,2]
[349818015,1737450647031,-500.0,0.0002,2]
[349818016,1737450647043,-500.0,0.0002,2]
[349818017,1737450647053,-151.834209,0.0002,2]
[349818018,1737450647063,-155.380198,0.0002,2]
[349818019,1737450647073,-500.0,0.0002,2]
[349818020,1737450647083,-963.972206,0.0002,2]
[349818021,1737450647092,-577.612484,0.0002,2]
[349818022,1737450647102,-500.0,0.0002,2]
[349818023,1737450647113,-577.612484,0.0002,2]
[349818024,1737450647122,-1200.229589,0.0002,2]
[349818025,1737450647131,-500.0,0.0002,2]
[349818026,1737450647140,-500.0,0.0002,2]
[349818027,1737450647150,-152.949788,0.0002,2]
[349818028,1737450647159,-384.91,0.0002,2]
[349818029,1737450647168,-12658.58,0.0002,2]
[349818030,1737450647177,-500.0,0.0002,2]
[349818031,1737450647190,-1200.229589,0.0002,2]
[349818032,1737450647199,-500.0,0.0002,2]
[349818033,1737450647209,-996.22,0.0002,2]
[349818034,1737450647219,-500.0,0.0002,2]
[349818035,1737450647228,-151.0,0.0002,2]
[349818036,1737450647238,-1636.09,0.0002,2]
[349818037,1737450647247,-622.86,0.0002,2]
[349818038,1737450647257,-500.0,0.0002,2]
[349818039,1737450647267,-151.0,0.0002,2]
[349818040,1737450647277,-500.0,0.0002,2]
[349818041,1737450647286,-500.0,0.0002,2]
[349818042,1737450647295,-221.37,0.0002,2]
[349818043,1737450647304,-500.0,0.0002,2]
[349818044,1737450647315,-517.41,0.0002,2]
[349818045,1737450647325,-151.0,0.0002,2]
[349818046,1737450647335,-775.51,0.0002,2]
[349818047,1737450647344,-566.643308,0.0002,2]
[349818048,1737450647354,-151.0,0.0002,2]
[349818049,1737450647363,-1139.84,0.0002,2]
[349818050,1737450647372,-500.0,0.0002,2]
[349818051,1737450647381,-233.788884,0.0002,2]
[349818052,1737450647389,-151.0,0.0002,2]
[349818053,1737450647399,-704.93,0.0002,2]
[349818054,1737450647408,-233.788884,0.0002,2]
[349818055,1737450647417,-1296.17,0.0002,2]
[349818056,1737450647426,-500.0,0.0002,2]
[349818057,1737450647436,-220.902694,0.0002,2]
[349818058,1737450647445,-500.0,0.0002,2]
[349818059,1737450647455,-151.0,0.0002,2]
[349818060,1737450647464,-1305.54,0.0002,2]
[349818061,1737450647473,-500.0,0.0002,2]
[349818062,1737450647483,-500.0,0.0002,2]
[349818063,1737450647492,-1608.19,0.0002,2]
[349818064,1737450647502,-151.0,0.0002,2]
[349818065,1737450647511,-151.0,0.0002,2]
[349818066,1737450647521,-500.0,0.0002,2]
[349818067,1737450647530,-151.0,0.0002,2]
[349818068,1737450647540,-500.0,0.0002,2]
[349818069,1737450647549,-1609.07,0.0002,2]
[349818070,1737450647560,-728.03,0.0002,2]
[349818071,1737450647570,-500.0,0.0002,2]
[349818072,1737450647579,-500.0,0.0002,2]
[349818073,1737450647589,-545.49,0.0002,2]
[349818074,1737450647598,-222.633939,0.0002,2]
[349818075,1737450647608,-839.08,0.0002,2]
[349818076,1737450647618,-500.0,0.0002,2]
[349818077,1737450647628,-500.0,0.0002,2]
[349818078,1737450647638,-500.0,0.0002,2]
[349818079,1737450647647,-1179.906541,0.0002,2]
[349818080,1737450647656,-500.0,0.0002,2]
[349818081,1737450647667,-927.49,0.0002,2]
[349818082,1737450647675,-500.0,0.0002,2]
[349818083,1737450647685,-162.63256,0.0002,2]
[349818084,1737450647695,-500.0,0.0002,2]
[349818085,1737450647704,-500.0,0.0002,2]
[349818086,1737450647713,-500.0,0.0002,2]
[349818087,1737450647722,-1146.462683,0.0002,2]
[349818088,1737450647731,-537.93,0.0002,2]
[349818089,1737450647741,-500.0,0.0002,2]
[349818090,1737450647750,-1146.462683,0.0002,2]
[349818091,1737450647760,-151.0,0.0002,2]
[349818092,1737450647769,-237.806279,0.0002,2]
[349818093,1737450647778,-212.76368305,0.0002,2]
[349818094,1737450647787,-237.806279,0.0002,2]
[349818095,1737450647796,-500.0,0.0002,2]
[349818096,1737450647805,-557.12,0.0002,2]
[349818097,1737450647816,-805.94,0.0002,2]
[349818098,1737450647824,-621.6,0.0002,2]
[349818099,1737450647833,-500.0,0.0002,2]
[349818100,1737450647842,-837.36,0.0002,2]
[349818101,1737450647851,-500.0,0.0002,2]
[349818102,1737450647860,-500.0,0.0002,2]
[349818103,1737450647869,-500.0,0.0002,2]
[349818104,1737450647878,-1207.54,0.0002,2]
[349818105,1737450647887,-500.0,0.0002,2]
[349818106,1737450647896,-151.590323,0.0002,2]
[349818107,1737450647905,-500.0,0.0002,2]
[349818108,1737450647914,-500.0,0.0002,2]
[349818109,1737450647923,-1050.36,0.0002,2]
[349818110,1737450647932,-728.95,0.0002,2]
[349818111,1737450647941,-171.71377,0.0002,2]
[349818112,1737450647951,-654.59,0.0002,2]
[349818113,1737450647960,-151.0,0.0002,2]
[349818114,1737450647969,-1201.91,0.0002,2]
[349818115,1737450647979,-500.0,0.0002,2]
[349818116,1737450647988,-821.41,0.0002,2]
[349818117,1737450647997,-151.0,0.0002,2]
[349818118,1737450648007,-500.0,0.0002,2]
[349818119,1737450648016,-1041.36,0.0002,2]
[349818120,1737450648027,-500.0,0.0002,2]
[349818121,1737450648039,-152.488186,0.0002,2]
[349818122,1737450648049,-151.0,0.0002,2]
[349818123,1737450648062,-626.41,0.0002,2]
[349818124,1737450648072,-151.0,0.0002,2]
[349818125,1737450648083,-599.33,0.0002,2]
[349818126,1737450648093,-500.0,0.0002,2]
[349818127,1737450648110,-795.91,0.0002,2]
[349818128,1737450648120,-542.672123,0.0002,2]
[349818129,1737450648131,-1676.17,0.0002,2]
[349818130,1737450648141,-210.98,0.0002,2]
[349818131,1737450648151,-500.0,0.0002,2]
[349818132,1737450648161,-537.99,0.0002,2]
[349818133,1737450648170,-500.0,0.0002,2]
[349818134,1737450648180,-151.0,0.0002,2]
[349818135,1737450648190,-1571.69,0.0002,2]
[349818136,1737450648200,-1491.21,0.0002,2]
[349818137,1737450648210,-1067.25,0.0002,2]
[349818138,1737450648220,-1814.55,0.0002,2]
[349818139,1737450648230,-151.0,0.0002,2]
[349818140,1737450648239,-500.0,0.0002,2]
[349818141,1737450648248,-151.0,0.0002,2]
[349818142,1737450648258,-573.56,0.0002,2]
[349818143,1737450648268,-182.506579,0.0002,2]
[349818144,1737450648277,-784.8,0.0002,2]
[349818145,1737450648287,-500.0,0.0002,2]
[349818146,1737450648297,-2494.89,0.0002,2]
[349818147,1737450648306,-182.506579,0.0002,2]
[349818148,1737450648318,-502.38,0.0002,2]
[349818149,1737450648328,-500.0,0.0002,2]
[349818150,1737450648337,-151.0,0.0002,2]
[349818151,1737450648347,-157.088995,0.0002,2]
[349818152,1737450648357,-161.461183,0.0002,2]
[349818153,1737450648366,-267.95538,0.0002,2]
[349818154,1737450648376,-695.98,0.0002,2]
[349818155,1737450648386,-500.0,0.0002,2]
[349818156,1737450648395,-500.0,0.0002,2]
[349818157,1737450648405,-151.0,0.0002,2]
[349818158,1737450648415,-1436.11,0.0002,2]
[349818159,1737450648425,-824.62,0.0002,2]
[349818160,1737450648435,-500.0,0.0002,2]
[349818161,1737450648445,-500.0,0.0002,2]
[349818162,1737450648455,-764.64,0.0002,2]
[349818163,1737450648465,-500.0,0.0002,2]
[349818164,1737450648475,-1000.0,0.0002,2]
[349818165,1737450648484,-500.0,0.0002,2]
[349818166,1737450648494,-500.0,0.0002,2]
[349818167,1737450648504,-290.873762,0.0002,2]
[349818168,1737450648513,-1470.78,0.0002,2]
[349818169,1737450648523,-360.086314,0.0002,2]
[349818170,1737450648533,-1333.1,0.0002,2]
[349818171,1737450648543,-500.0,0.0002,2]
[349818172,1737450648552,-1291.48,0.0002,2]
[349818173,1737450648566,-290.873762,0.0002,2]
[349818174,1737450648576,-563.82121802,0.0002,2]
[349818175,1737450648586,-500.0,0.0002,2]
[349818176,1737450648596,-500.0,0.0002,2]
[349818177,1737450648607,-945.45,0.0002,2]
[349818178,1737450648618,-668.66,0.0002,2]
[349818179,1737450648629,-500.0,0.0002,2]
[349818180,1737450648639,-500.0,0.0002,2]
[349818181,1737450648648,-500.0,0.0002,2]
[349818182,1737450648660,-1457.67,0.0002,2]
[349818183,1737450648672,-1028.82,0.0002,2]
[349818184,1737450648681,-500.0,0.0002,2]
[349818185,1737450648691,-524.17835608,0.0002,2]
[349818186,1737450648702,-1553.35,0.0002,2]
[349818187,1737450648712,-514.06866692,0.0002,2]
[349818188,1737450648722,-434.99891,0.0002,2]
[349818189,1737450648732,-500.0,0.0002,2]
[349818190,1737450648742,-434.99891,0.0002,2]
[349818191,1737450648752,-203.82937226,0.00020025,2]
[349818192,1737450648763,-537.04,0.00020136,2]
[349818193,1737450648775,-203.82937226,0.0002015,2]
[349818194,1737450648785,-34267.0,0.00020247,2]
[349818195,1737450648795,-151.0,0.00020247,2]
[349818196,1737450648805,-151.0,0.00020247,2]
[349818197,1737450648820,-151.0,0.00020247,2]
[349818198,1737450648830,-151.0,0.00020247,2]
[349818199,1737450648840,-151.0,0.00020247,2]
[349818200,1737450648849,-151.0,0.00020247,2]
[349818201,1737450648859,-151.0,0.00020247,2]
[349818202,1737450648869,-151.0,0.00020247,2]
[349818203,1737450648878,-266.590664,0.00020247,2]
[349818204,1737450648887,-151.0,0.00020247,2]
[349818205,1737450648896,-151.0,0.00020247,2]
[349818206,1737450648904,-151.0,0.00020247,2]
[349818207,1737450648913,-151.0,0.00020247,2]
[349818208,1737450648923,-151.0,0.00020247,2]
[349818209,1737450648934,-151.0,0.00020247,2]
[349818210,1737450648944,-155.945914,0.00020247,2]
[349818211,1737450648953,-151.421503,0.00020247,2]
[349818212,1737450648963,-151.421503,0.00020247,2]
[349818213,1737450648972,-151.0,0.00020247,2]
[349818214,1737450648982,-200.044705,0.00020247,2]
[349818215,1737450648992,-151.0,0.00020247,2]
[349818216,1737450649002,-151.0,0.00020247,2]
[349818217,1737450649012,-692.671739,0.00020247,2]
[349818218,1737450649022,-692.671739,0.00020247,2]
[349818219,1737450649035,-151.0,0.00020247,2]
[349818220,1737450649045,-151.0,0.00020247,2]
[349818221,1737450649055,-726.391772,0.00020247,2]
[349818222,1737450649066,-726.391772,0.00020247,2]
[349818223,1737450649077,-151.0,0.00020247,2]
[349818224,1737450649087,-577.612484,0.00020247,2]
[349818225,1737450649097,-577.612484,0.00020247,2]
[349818226,1737450649107,-1200.229589,0.00020247,2]
[349818227,1737450649117,-1200.229589,0.00020247,2]
[349818228,1737450649127,-151.0,0.00020247,2]
[349818229,1737450649137,-151.0,0.00020247,2]
[349818230,1737450649146,-151.0,0.00020247,2]
[349818231,1737450649156,-151.0,0.00020247,2]
[349818232,1737450649165,-154.034405,0.00020247,2]
[349818233,1737450649175,-1179.906541,0.00020247,2]
[349818234,1737450649184,-1146.462683,0.00020247,2]
[349818235,1737450649194,-1146.462683,0.00020247,2]
[349818236,1737450649204,-237.806279,0.00020247,2]
[349818237,1737450649213,-237.806279,0.00020247,2]
[349818238,1737450649222,-151.0,0.00020247,2]
[349818239,1737450649352,-151.0,0.00020247,2]
[349818240,1737450649362,-151.0,0.00020247,2]
[349818241,1737450649372,-151.0,0.00020247,2]
[349818242,1737450649382,-290.873762,0.00020247,2]
[349818243,1737450649392,-290.873762,0.00020247,2]
[349818244,1737450649401,-151.0,0.00020273,2]
[349818245,1737450649411,-500.0,0.00020273,2]
[349818246,1737450649420,-537.04,0.00020273,2]
[349818247,1737450649429,-888.22,0.00020273,2]
[349818248,1737450649439,-260.30916825,0.00020273,2]
[349818249,1737450649449,-500.0,0.00020273,2]
[349818250,1737450649458,-500.0,0.00020273,2]
[349818251,1737450649468,-500.0,0.00020273,2]
[349818252,1737450649477,-500.0,0.00020273,2]
[349818253,1737450649486,-746.9,0.00020273,2]
[349818254,1737450649496,-500.0,0.00020273,2]
[349818255,1737450649505,-1111.59,0.00020273,2]
[349818256,1737450649514,-500.0,0.00020273,2]
[349818257,1737450649524,-500.0,0.00020273,2]
[349818258,1737450649534,-500.0,0.00020273,2]
[349818259,1737450649543,-500.0,0.00020273,2]
[349818260,1737450649552,-500.0,0.00020273,2]
[349818261,1737450649563,-500.0,0.00020273,2]
[349818262,1737450649572,-500.0,0.00020273,2]
[349818263,1737450649582,-500.0,0.00020273,2]
[349818264,1737450649592,-963.972206,0.00020273,2]
[349818265,1737450649601,-500.0,0.00020273,2]
[349818266,1737450649611,-230.3389895,0.00020273,2]
[349818267,1737450649622,-500.0,0.00020273,2]
[349818268,1737450649632,-12658.58,0.00020273,2]
[349818269,1737450649643,-500.0,0.00020273,2]
[349818270,1737450649654,-500.0,0.00020273,2]
[349818271,1737450649664,-996.22,0.00020273,2]
[349818272,1737450649675,-500.0,0.00020273,2]
[349818273,1737450649686,-1636.09,0.00020273,2]
[349818274,1737450649696,-622.86,0.00020273,2]
[349818275,1737450649706,-500.0,0.00020273,2]
[349818276,1737450649715,-500.0,0.00020273,2]
[349818277,1737450649726,-500.0,0.00020273,2]
[349818278,1737450649735,-303.78,0.00020273,2]
[349818279,1737450649745,-517.41,0.00020273,2]
[349818280,1737450649755,-151.0,0.00020273,2]
[349818281,1737450649764,-775.51,0.00020273,2]
[349818282,1737450649774,-566.643308,0.00020273,2]
[349818283,1737450649784,-151.0,0.00020273,2]
[349818284,1737450649794,-1139.84,0.00020273,2]
[349818285,1737450649803,-500.0,0.00020273,2]
[349818286,1737450649814,-233.788884,0.00020273,2]
[349818287,1737450649824,-151.0,0.00020273,2]
[349818288,1737450649835,-704.93,0.00020273,2]
[349818289,1737450649845,-233.788884,0.00020273,2]
[349818290,1737450649856,-1296.17,0.00020273,2]
[349818291,1737450649866,-500.0,0.00020273,2]
[349818292,1737450649875,-220.902694,0.00020273,2]
[349818293,1737450649885,-500.0,0.00020273,2]
[349818294,1737450649894,-151.0,0.00020273,2]
[349818295,1737450649904,-1305.54,0.00020273,2]
[349818296,1737450649913,-500.0,0.00020273,2]
[349818297,1737450649923,-500.0,0.00020273,2]
[349818298,1737450649933,-1608.19,0.00020273,2]
[349818299,1737450649942,-500.0,0.00020273,2]
[349818300,1737450649951,-172.57,0.00020273,2]